Cogmind - Beta 14 @@@ ROGUE MODE // 2024.08.07 @ 13:02:55 Player: Pog Moment Result: Destroyed by G-47 Trooper with Particle Gun Performance ------------- Evolutions (2) 1000 Regions Visited (3) 600 Robots Destroyed (36) 180 Value Destroyed (874) 874 Prototype IDs (1) 20 Alien Tech Used (0) 0 Bonus (22) 22 TOTAL SCORE: 2696 Bonus ------- High Alert Combat Kills 22 Cogmind --------- Core Integrity 0/550 Matter 300/300 Energy 100/100 System Corruption 0% Temperature Cool (36) Movement Core (700) Ox13 Location -8/Materials Parts ------- > --- POWER (2) -------- (None) > --- PROPULSION (3) --- (None) > --- UTILITY (3) ------ High-capacity Storage Unit Hacking Suite > --- WEAPON (3) ------- (None) > --- INVENTORY (20) --- Advanced Treads Large Storage Unit Sensor Array High-powered Tractor Beam EM Pulse Gun Shotgun Peak State ------------ > --- POWER ------------ Ion Engine Ion Engine > --- PROPULSION ------- Advanced Treads Advanced Treads Advanced Treads > --- UTILITY ---------- Large Storage Unit Improved Targeting Computer Hacking Suite > --- WEAPON ----------- Advanced Beam Cannon High-powered Shotgun Missile Launcher > --- INVENTORY -------- Advanced Treads Sensor Array High-powered Tractor Beam EM Pulse Gun Shotgun [Rating: 27] Favorites ----------- Power Ion Engine Engine Ion Engine Power Core Light Nuclear Core Propulsion Advanced Treads Treads Advanced Treads Leg Improved Aluminum Leg Utility Improved Targeting Computer Device Sensor Array Storage Medium Storage Unit Processor Improved Targeting Computer Hackware Hacking Suite Weapon EM Pulse Gun Energy Gun EM Pulse Gun Energy Cannon Advanced Beam Cannon Ballistic Gun Assault Rifle Launcher Missile Launcher Build | -11 -10 -9 -8 ------- Run | Yrd Mat Mat Mat Slots Evolved 4 | . . 2 2 Power 1 | . . 1 . Propulsion 1 | . . . 1 Utility 1 | . . 1 . Weapon 1 | . . . 1 Parts Attached 29 | 6 3 11 9 Power 4 | 1 . 1 2 Engine 3 | 1 . 1 1 Core 1 | . . . 1 Reactor . | . . . . Propulsion 8 | 2 . 4 2 Treads 6 | 2 . 2 2 Leg 2 | . . 2 . Wheel . | . . . . Hover . | . . . . Flight . | . . . . Utility 9 | 1 2 4 2 Device 1 | . 1 . . Storage 6 | 1 1 3 1 Processor 1 | . . 1 . Hackware 1 | . . . 1 Protection . | . . . . Artifact . | . . . . Weapon 8 | 2 1 2 3 Energy Gun 2 | 1 . 1 . Energy Cannon 1 | . . . 1 Ballistic Gun 3 | 1 . 1 1 Ballistic Cannon . | . . . . Launcher 2 | . 1 . 1 Special Weapon . | . . . . Impact Weapon . | . . . . Slashing Weapon . | . . . . Piercing Weapon . | . . . . Special Melee Weapon . | . . . . Unidentified Prototypes 1 | . . . 1 Parts Lost 12 | . 1 . 11 Power 4 | . . . 4 Propulsion 3 | . . . 3 Utility 1 | . . . 1 Weapon 4 | . 1 . 3 Highest Loss Streak 7 | . 1 . 7 To Critical Strikes . | . . . . Average Slot Usage (%) 88 | . 95 87 86 Engine 11 | . 14 11 11 Treads 23 | . 28 15 24 Leg 1 | . . 6 . Device 5 | . 10 11 . Storage 10 | . 14 11 9 Processor 7 | . . 10 8 Hackware 4 | . . . 8 Energy Gun 6 | . 12 10 1 Energy Cannon 3 | . . . 6 Ballistic Gun 10 | . 14 11 8 Launcher 2 | . 1 . 4 Peak Build Rating 27 | 6 7 15 27 Average Rating 15 | 3 6 11 23 On Entrance 6 | . 6 6 15 Naked Turns . | . . . . Heaviest Build 63 | 14 21 36 63 Greatest Support 66 | 40 40 44 66 Greatest Overweight (x) 13 | . . . 13 Average Overweight (x) . | . . . . Largest Inventory Capacity 20 | 8 10 15 20 Average Capacity 14 | 6 9 11 18 Most Carried 9 | 3 3 9 7 Average Carried 3 | . 2 2 5 Final Capacity 20 | 8 10 15 20 Final Carried 6 | . 3 3 6 Class Distribution -------------------- 73% | Mutant 26% | Gunner Dominant Class ---------------- Mutant | -10/Materials Mutant | -9/Materials Gunner | -8/Materials Resources | -11 -10 -9 -8 ----------- Run | Yrd Mat Mat Mat Matter Collected 780 | 127 87 64 502 Remotely . | . . . . Salvage Created 1109 | . 112 185 812 Parts 63 | . 9 9 45 Haulers Intercepted . | . . . . Recyclers Shooed . | . . . . Parts Field Recycled . | . . . . Retrieved Matter . | . . . . Parts Self-Destructed . | . . . . Prevented . | . . . . Kills | -11 -10 -9 -8 ------- Run | Yrd Mat Mat Mat Combat Hostiles Destroyed 20 | . 3 4 13 Guns 11 | . 2 3 6 Cannons 5 | . . . 5 AOE 4 | . 1 1 2 Classes Destroyed 9 | . 4 . 5 Worker 7 | . 1 1 5 Builder 2 | . . . 2 Recycler 3 | . . . 3 Watcher 4 | . 1 . 3 Swarmer 4 | . 1 . 3 Grunt 12 | . 2 4 6 Duelist 1 | . . . 1 Sentry 2 | . . . 2 Hunter 1 | . . . 1 Best Kill Streak 8 | . 3 3 8 Combat Bots Only 4 | . 2 2 4 Max Kills in Single Turn 2 | . 1 2 2 Gunslinging 1 | . . 1 . Exploded 1 | . 1 1 1 Melee . | . . . . Uniques/NPCs Destroyed . | . . . . Combat | -11 -10 -9 -8 -------- Run | Yrd Mat Mat Mat Hostile Shots Fired 211 | . 32 11 168 Missed 55 | . 10 2 43 Damage Taken 2535 | . 608 119 1808 Core 678 | . 99 20 559 Absorbed by Shields . | . . . . Core Remaining (%) 85 | 100 60 95 . Volleys Fired 87 | . 17 8 62 Largest 3 | . 2 2 3 Hottest 129 | . 60 63 129 Shots Fired 125 | . 24 14 87 Gun 72 | . 21 14 37 Cannon 37 | . . . 37 Launcher 16 | . 3 . 13 Special . | . . . . Kinetic 55 | . 14 6 35 Thermal 37 | . . . 37 Explosive 16 | . 3 . 13 Electromagnetic 17 | . 7 8 2 Robot Hit Streak 7 | . 6 7 5 Robot Miss Streak 6 | . 1 1 6 Penetration Max . | . . . . Secondary Targets 1 | . . 1 . Max Gunslinging Chain 1 | . . 1 . Shots Hit Robots 69 | . 13 12 44 Core Hits 55 | . 7 10 38 Critical Kills . | . . . . Critical Parts Destroyed . | . . . . Critical Strikes . | . . . . Melee Attacks . | . . . . Impact . | . . . . Slashing . | . . . . Piercing . | . . . . Sneak Attacks . | . . . . Combat Hostiles . | . . . . Follow-up Attacks . | . . . . Damage Inflicted 2206 | . 300 258 1648 Guns 772 | . 167 167 438 Cannons 430 | . . . 430 Explosions 998 | . 133 91 774 Melee . | . . . . Ramming 6 | . . . 6 Kinetic 620 | . 111 71 438 Thermal 521 | . . 91 430 Explosive 907 | . 133 . 774 Electromagnetic 152 | . 56 96 . Impact . | . . . . Slashing . | . . . . Piercing . | . . . . Highest Corruption 1 | . 1 . . Average Corruption 1 | . 1 . . Corruption Purged . | . . . . Corruption Blocked . | . . . . Overload Shots . | . . . . Overflow Damage 51 | . . . 51 Projectiles . | . . . . Explosions 51 | . . . 51 Melee . | . . . . Knockbacks . | . . . . Impact . | . . . . Kinetic . | . . . . Secondary . | . . . . Self-Inflicted Damage 128 | . . 24 104 Shots 4 | . . 1 3 Rammed 1 | . . . 1 Targets Rammed 2 | . . . 2 Kicked . | . . . . Crushed 1 | . . . 1 Highest Temperature 445 | . 3 32 445 Average Temperature 139 | . 1 12 155 Received Heat Transfer 1023 | . 96 54 873 Effects 7 | . . . 7 Shutdowns 3 | . . . 3 Energy Bleed 1 | . . . 1 Interference 2 | . . . 2 Damage (minor) 1 | . . . 1 Siege Activations . | . . . . Robots Corrupted . | . . . . Combat Hostiles . | . . . . Parts Fried 2 | . 2 . . Impact Corruptions . | . . . . Robots Melted . | . . . . Combat Hostiles . | . . . . Parts Melted . | . . . . Heat Transferred 827 | . . 50 777 Parts Sabotaged . | . . . . Parts Stolen . | . . . . Parts Stripped . | . . . . Power Chain Reactions 1 | . . 1 . Alert | -11 -10 -9 -8 ------- Run | Yrd Mat Mat Mat Peak Influence 447 | . 111 134 447 Initial 42 | . . 42 . Average 99 | . 32 45 168 Maximum Alert Level 2 | . . . 2 Low Security (%) 80 | 100 100 100 58 Level 1 14 | . . . 30 Level 2 5 | . . . 10 Level 3 . | . . . . Level 4 . | . . . . Level 5 . | . . . . High Security . | . . . . Max Security . | . . . . Squads Dispatched 5 | . 1 . 4 Investigation . | . . . . Extermination . | . . . . Reinforcement 5 | . 1 . 4 Assault . | . . . . Garrison . | . . . . Intercept . | . . . . Searches Triggered . | . . . . Construction Impeded 2 | . . . 2 Haulers Reinforced . | . . . . Active Scanning Responses . | . . . . Cargo Convoy Interrupts . | . . . . Stealth | -11 -10 -9 -8 --------- Run | Yrd Mat Mat Mat Distress Signals 2 | . 1 . 1 Communications Jammed . | . . . . Distress Signals . | . . . . Times Spotted 38 | . 7 4 27 Peak Tracking Total 8 | . 2 2 8 Tactical Retreats 2 | . . . 2 Traps | -11 -10 -9 -8 ------- Run | Yrd Mat Mat Mat Traps Triggered 1 | . . . 1 Indirectly . | . . . . Trap Hack Attempts . | . . . . Triggered . | . . . . Disarmed . | . . . . Reprogrammed . | . . . . Reused . | . . . . Traps Extracted . | . . . . Installed . | . . . . Triggered . | . . . . Machines | -11 -10 -9 -8 ---------- Run | Yrd Mat Mat Mat Machines Disabled 3 | . . . 3 Max in Single Turn 2 | . . . 2 Machines Repaired . | . . . . Machines Dismantled . | . . . . Machines Sabotaged . | . . . . Overloaded Fab Kills . | . . . . Hacking | -11 -10 -9 -8 --------- Run | Yrd Mat Mat Mat Machines Accessed 3 | . . 2 1 Terminals 1 | . . 1 . Fabricators . | . . . . Repair Stations . | . . . . Recycling Units 2 | . . 1 1 Scanalyzers . | . . . . Garrison Access . | . . . . Total Hacks 7 | . . 5 2 Successful 4 | . . 4 . Failed 3 | . . 1 2 Catastrophic 1 | . . . 1 Database Lockouts . | . . . . Manual . | . . . . Terminals 1 | . . 1 . Fabricators . | . . . . Repair Stations . | . . . . Recycling Units 6 | . . 4 2 Scanalyzers . | . . . . Garrison Access . | . . . . Terminal Hacks 1 | . . 1 . Alert Level 1 | . . 1 . Fabricator Hacks . | . . . . Repair Station Hacks . | . . . . Recycling Unit Hacks 3 | . . 3 . Recycle Component 1 | . . 1 . Process 1 | . . 1 . Retrieve Matter 1 | . . 1 . Scanalyzer . | . . . . Garrison Access Hacks . | . . . . Unauthorized Hacks . | . . . . Terminals . | . . . . Fabricators . | . . . . Repair Stations . | . . . . Recycling Units . | . . . . Scanalyzers . | . . . . Garrison Access . | . . . . Data Cores Recovered . | . . . . Used . | . . . . Hacking Detections 1 | . . . 1 Full Trace Events . | . . . . Feedback Events . | . . . . Feedback Blocked . | . . . . Robot Schematics Acquired . | . . . . Robots Built . | . . . . Authchips . | . . . . Time . | . . . . Total Robot Build Rating . | . . . . Part Schematics Acquired . | . . . . Parts Built . | . . . . Authchips . | . . . . Time . | . . . . Total Part Build Rating . | . . . . Parts Repaired . | . . . . Time . | . . . . Parts Recycled 1 | . . 1 . Recycled Matter 75 | . . 75 . Retrieved Matter 75 | . . 75 . Retrieved Components . | . . . . Parts Scanalyzed . | . . . . Part Schematics Acquired . | . . . . Parts Damaged . | . . . . Bothacking | -11 -10 -9 -8 ------------ Run | Yrd Mat Mat Mat Used RIF Installer . | . . . . Robots Hacked . | . . . . Non-combat . | . . . . Combat . | . . . . Robot Hacks Applied . | . . . . Relay Couplers Released . | . . . . Fabnet Peak Effective % . | . . . . Robots Rewired . | . . . . Allies Hacked . | . . . . Hacks Repelled . | . . . . Allies | -11 -10 -9 -8 -------- Run | Yrd Mat Mat Mat Total Allies . | . . . . Largest Group . | . . . . Highest-Rated Group . | . . . . Highest-Rated Ally . | . . . . Total Orders . | . . . . Ally Attacks . | . . . . Total Damage . | . . . . Kills . | . . . . Allies Corrupted . | . . . . Allies Melted . | . . . . Intel | -11 -10 -9 -8 ------- Run | Yrd Mat Mat Mat Robot Analysis Total . | . . . . Derelict Logs Recovered . | . . . . Drone Launches . | . . . . Drone Recoveries . | . . . . Exploration | -11 -10 -9 -8 ------------- Run | Yrd Mat Mat Mat Turns Passed 1691 | 64 393 431 803 Spaces Moved 933 | 39 216 267 411 Core 13 | 8 . . 5 Treads 829 | 31 216 176 406 Legs 91 | . . 91 . Wheels . | . . . . Hover . | . . . . Flight . | . . . . Fastest Speed 50 | 50 160 120 145 Average Speed 151 | 137 160 143 154 Slowest Speed 700 | 160 160 160 700 Overloaded Moves . | . . . . Propulsion Burnouts . | . . . . Robots Hopped . | . . . . Cave-ins Triggered 1 | . 1 . . Exploration Rate (%) 20 | 3 31 19 28 Regions Visited 3 Branch Regions . Pre-discovered Areas . | . . . . Known Exits Taken . | . . . . Unknown Exits Taken 3 | 1 1 1 . Scrap Searched . | . . . . Spaces Dug . | . . . . Terrain Destroyed 117 | . 16 5 96 Melee . | . . . . Projectile . | . . . . AOE 117 | . 16 5 96 Terrain Rammed . | . . . . Walls Destroyed . | . . . . Machines Disabled . | . . . . Actions | -11 -10 -9 -8 --------- Run | Yrd Mat Mat Mat Total 1084 | 50 240 303 491 Wait . | . . . . Move 930 | 38 215 266 411 Hop . | . . . . Pick Up 27 | 6 4 10 7 Fast Attach . | . . . . Attach 17 | 6 2 5 4 Detach 3 | . 1 2 . Swap 12 | . 1 6 5 Drop 6 | . . 6 . Fire 87 | . 17 8 62 Melee . | . . . . Ram . | . . . . Kick . | . . . . Crush 2 | . . . 2 Escape Stasis . | . . . . Rewire . | . . . . Trap . | . . . . Miscellaneous . | . . . . Route ------- -11/Scrapyard -10/Materials -9/Materials -8/Materials History --------- Turn | Location | Event 3 | -11/Scrapyard | Discovered new exit (range 15) 65 | -11/Scrapyard | Entered Materials 317 | -10/Materials | Build established: Mutant 373 | -10/Materials | Discovered new exit (range 11) 443 | -10/Materials | Crushed by falling debris 458 | -10/Materials | Entered another Materials area 458 | -9/Materials | Evolved 2 slots: Power x1, Utility x1 741 | -9/Materials | Discovered new exit (range 8) 889 | -9/Materials | Entered another Materials area 889 | -8/Materials | Evolved 2 slots: Propulsion x1, Weapon x1 1335 | -8/Materials | Build established: Gunner 1671 | -8/Materials | Core integrity fell below 50% 1688 | -8/Materials | Core integrity fell below 20% 1692 | -8/Materials | Destroyed by G-47 Trooper with Particle Gun Last Messages --------------- R-06 Scavenger collects Wheel. Adv. Treads destroyed. U-05 Engineer lays Concrete. R-06 Scavenger collects Imp. Signal Interpreter. R-06 Scavenger destroyed. Imp. Targeting Computer destroyed. K-01 Serf collects debris. Critical hit (Burn: +37). K-01 Serf collects debris. Critical hit (Burn: +37). K-01 Serf collects debris. R-06 Scavenger collects Imp. Signal Interpreter. C-30 ARC bursts open, deploying its payload. S-10 Pest unfolds itself. K-01 Serf collects debris. R-06 Scavenger collects Com. Wheel. R-06 Scavenger collects Tractor Beam. K-01 Serf collects debris. Critical hit (Burn: +37). [Achievement: First Step to Greatness] Map ----- +----------------------------------------------------+ | ?????????????????????????????????????????????????? | | ?????????????????????????????????????????????????? | | ??????????????????????????? ?????????????????????? | | ?????????????????????????? #????????????????????? | | ?????????????????????????? #????????????????????? | | ????????????????????????? ?????????????????????? | | ?????????????? ?????????? ?????????????????????? | | ??????????????# ????????? ?????????????????????? | | ##########????# ???????? ?????????????????????? | | #????# ??????? ?????????????????????? | | # #????# #######;##????????????????????? | | #????# k ????????????????????? | | #????# ?????????????????????? | | # #????# == ?????????????????????? | | # #??????# == == #?????????????????????? | | # ???####?# = =%[#?????????????????????? | | # ??## #?# *#?????????????????????? | | #### ####### %#?????????????????????? | | " " #?????????????????????? | | %% g #?????????????????????? | | = % #?????????????????????? | | #= % #######+######+####k=g#?????????????????????? | | # ##????????#srs#?????????????????????? | | # #????????#%s #?????????????????????? | | # #????????# #?????????????????????? | | # ] ##????????# @ #?????????????????????? | | # #????????# g #?????????????????????? | | ### #/# #????????#g #?????????????????????? | | ## ! # ##????????# #?????????????????????? | | ## # ###?????????# ###########???????????? | | ## #???????????# # #???????????? | | ## " ############# # #???????????? | | ## % # #???????????? | | ## " "" + + #???????????? | | ## """" # # #???????????? | | # """" ###########+### # #???????????? | | + #???# # # #???????????? | | /# =#???# """ """ # # #???????????? | | # #???# """ """ # ###########???????????? | | %############# """ """ # #?????????????????????? | | =# """ ## # #?????????????????????? | | """ ## " " # #?????????????????????? | | " """ ## "Y" # #?????????????????????? | | # ## """ # #?????????????????????? | | + ############ #?????????????????????? | | # ] #??????????# #?????????????????????? | | ###+########??????????#####?????????????????????? | | ## #??????????????????????????????????????????? | | #??????????????????????????????????????????? | | T #??????????????????????????????????????????? | +----------------------------------------------------+ Best States ------------- Heat Dissipation 31 Energy Generation 19 Energy Capacity 400 Matter Stores 300 Matter Capacity 300 Sight Range 16 Robot Scan Range 14 Terrain Scan Density 10 Evasion (%) 55 Targeting Accuracy 6 Recoil Reduction 3 Offensive Hacking 10 Item Schematics ----------------- None Robot Schematics ------------------ None Fabricated ------------ Nothing Alien Tech Used ----------------- None Achievements -------------- First Step to Greatness Risk Taker Storm Trooper Uninvited Guest Unlikely Earthworm Challenges ------------ None Game ------ Seed CryofiberHardcellRipteeth Manual? 0 Play Time 00:28:27 Cumulative 0.4 hours Start 2024.08.07 @ 12:36:49 End 2024.08.07 @ 13:02:55 Sessions 1 Manual Loads 0 Difficulty Rogue Special Mode None Game No. 2 Rogue 1 Adventurer 1 Explorer 0 Win Type - Total 0 Types 0/0/0/0/0/0/0/0/0 Lore% 0 Gallery% 2 Achievement% 1 Wizard Run 0 Options --------- Layout 1 ASCII 0 Keyboard 0 Movement Arrows Keybinds 0 Fullscreen 1 Font 24/Smallcaps Map View 50x35 Zoom Use 0% Tactical HUD 0 Map Filters NONE Filters NONE Steam 1 RUN: cc2866ff-3411-4fee-8cb1-f2dad90746ac